[Event "December 5 Late 2023"]
[Site "https://www.chess.com"]
[Date "2023.12.05"]
[Round "4"]
[White "Troff, Kayden"]
[Black "Andreikin, Dmitry"]
[Result "0-1"]
[Board "18"]
[TimeControl "180+1"]
[WhiteFideId "2047896"]
[BlackFideId "4158814"]
[WhiteElo "2791"]
[BlackElo "3106"]
[WhiteTeam "USA"]
[BlackTeam "FID"]
[WhiteClock "0:00:02"]
[BlackClock "0:00:23"]

1. d4 {[%clk 0:03:00]}  Nf6 {[%clk 0:02:59]} 2. Nf3 {[%clk 0:03:01]}  g6 {[%clk 0:02:59]} 3. Bg5 {[%clk 0:03:01]}  Bg7 {[%clk 0:02:59]} 4. Nc3 {[%clk 0:03:02]}  d5 {[%clk 0:02:58]} 5. Bxf6 {[%clk 0:03:02]}  exf6 {[%clk 0:02:57]} 6. g3 {[%clk 0:03:02]}  c6 {[%clk 0:02:57]} 7. Bg2 {[%clk 0:03:02]}  Nd7 {[%clk 0:02:55]} 8. O-O {[%clk 0:03:01]}  f5 {[%clk 0:02:55]} 9. e3 {[%clk 0:03:00]}  h5 {[%clk 0:02:54]} 10. h4 {[%clk 0:03:01]}  Nf6 {[%clk 0:02:51]} 11. Ne2 {[%clk 0:03:00]}  Ng4 {[%clk 0:02:49]} 12. Rc1 {[%clk 0:02:56]}  Bh6 {[%clk 0:02:46]} 13. Nf4 {[%clk 0:02:46]}  g5 {[%clk 0:02:42]} 14. Nxh5 {[%clk 0:02:44]}  gxh4 {[%clk 0:02:39]} 15. Nxh4 {[%clk 0:02:43]}  Kf8 {[%clk 0:02:26]} 16. Bf3 {[%clk 0:01:48]}  Be6 {[%clk 0:02:06]} 17. Nxf5 {[%clk 0:01:44]}  Nxf2 {[%clk 0:02:00]} 18. Kxf2 {[%clk 0:01:27]}  Bxf5 {[%clk 0:02:00]} 19. Rh1 {[%clk 0:01:27]}  Qb6 {[%clk 0:01:53]} 20. b3 {[%clk 0:01:22]}  Qa5 {[%clk 0:01:44]} 21. a4 {[%clk 0:01:15]}  Qc3 {[%clk 0:01:43]} 22. Nf4 {[%clk 0:01:14]}  Re8 {[%clk 0:01:43]} 23. Qe1 {[%clk 0:01:14]}  Qxe1+ {[%clk 0:01:43]} 24. Rhxe1 {[%clk 0:01:13]}  Bxf4 {[%clk 0:01:42]} 25. gxf4 {[%clk 0:01:12]}  Rh2+ {[%clk 0:01:41]} 26. Kg3 {[%clk 0:00:40]}  Rxc2 {[%clk 0:01:37]} 27. Rxc2 {[%clk 0:00:37]}  Bxc2 {[%clk 0:01:38]} 28. Kf2 {[%clk 0:00:37]}  Re7 {[%clk 0:01:34]} 29. Bd1 {[%clk 0:00:36]}  Be4 {[%clk 0:01:29]} 30. Rg1 {[%clk 0:00:35]}  f6 {[%clk 0:01:26]} 31. b4 {[%clk 0:00:35]}  Rh7 {[%clk 0:01:26]} 32. Bf3 {[%clk 0:00:34]}  Rh2+ {[%clk 0:01:13]} 33. Rg2 {[%clk 0:00:34]}  Rh1 {[%clk 0:01:00]} 34. Bxe4 {[%clk 0:00:16]}  dxe4 {[%clk 0:01:01]} 35. f5 {[%clk 0:00:17]}  Rh5 {[%clk 0:00:54]} 36. Rg4 {[%clk 0:00:17]}  Rxf5+ {[%clk 0:00:54]} 37. Ke2 {[%clk 0:00:17]}  a5 {[%clk 0:00:54]} 38. bxa5 {[%clk 0:00:14]}  Rxa5 {[%clk 0:00:55]} 39. Rxe4 {[%clk 0:00:15]}  Rxa4 {[%clk 0:00:56]} 40. Rh4 {[%clk 0:00:15]}  Kg7 {[%clk 0:00:51]} 41. Rg4+ {[%clk 0:00:12]}  Kf7 {[%clk 0:00:52]} 42. Rh4 {[%clk 0:00:12]}  Rb4 {[%clk 0:00:50]} 43. Kd3 {[%clk 0:00:11]}  Rb3+ {[%clk 0:00:50]} 44. Ke4 {[%clk 0:00:11]}  b5 {[%clk 0:00:47]} 45. Rh8 {[%clk 0:00:10]}  b4 {[%clk 0:00:42]} 46. Rb8 {[%clk 0:00:07]}  Ke6 {[%clk 0:00:39]} 47. Rb6 {[%clk 0:00:07]}  Kd7 {[%clk 0:00:39]} 48. Kf5 {[%clk 0:00:05]}  Kc7 {[%clk 0:00:35]} 49. Ra6 {[%clk 0:00:05]}  Rxe3 {[%clk 0:00:35]} 50. Kxf6 {[%clk 0:00:05]}  b3 {[%clk 0:00:35]} 51. Ra4 {[%clk 0:00:05]}  Kd6 {[%clk 0:00:34]} 52. Rb4 {[%clk 0:00:05]}  Rf3+ {[%clk 0:00:34]} 53. Kg5 {[%clk 0:00:05]}  Kd5 {[%clk 0:00:33]} 54. Kg4 {[%clk 0:00:06]}  Rd3 {[%clk 0:00:34]} 55. Kf5 {[%clk 0:00:05]}  c5 {[%clk 0:00:27]} 56. dxc5 {[%clk 0:00:05]}  Kxc5 {[%clk 0:00:28]} 57. Rb8 {[%clk 0:00:06]}  Kd4 {[%clk 0:00:24]} 58. Kf4 {[%clk 0:00:06]}  Kc3 {[%clk 0:00:22]} 59. Ke4 {[%clk 0:00:06]}  Rh3 {[%clk 0:00:22]} 60. Rc8+ {[%clk 0:00:04]}  Kd2 {[%clk 0:00:22]} 61. Rd8+ {[%clk 0:00:02]}  Kc2 {[%clk 0:00:23]} 62. Rc8+ {[%clk 0:00:03]}  Rc3 {[%clk 0:00:22]} 63. Rg8 {[%clk 0:00:03]}  b2 {[%clk 0:00:23]} 64. Rg2+ {[%clk 0:00:03]}  Kb3 {[%clk 0:00:23]} 65. Rg8 {[%clk 0:00:02]}  b1=Q+ {[%clk 0:00:23]} 0-1

[Event "December 5 Late 2023"]
[Site "https://www.chess.com"]
[Date "2023.12.05"]
[Round "4"]
[White "Urazayev, Arystanbek"]
[Black "Hakobyan, Aram"]
[Result "1-0"]
[Board "20"]
[TimeControl "180+1"]
[WhiteFideId "13709810"]
[BlackFideId "13306677"]
[WhiteElo "2768"]
[BlackElo "3015"]
[WhiteTeam "KAZ"]
[BlackTeam "ARM"]
[WhiteClock "0:00:20"]
[BlackClock "0:00:00"]

1. d4 {[%clk 0:03:00]}  d5 {[%clk 0:02:59]} 2. c4 {[%clk 0:03:00]}  dxc4 {[%clk 0:03:00]} 3. Nf3 {[%clk 0:03:01]}  Nf6 {[%clk 0:03:00]} 4. e3 {[%clk 0:03:01]}  e6 {[%clk 0:03:01]} 5. Bxc4 {[%clk 0:03:02]}  a6 {[%clk 0:03:02]} 6. O-O {[%clk 0:03:02]}  Nbd7 {[%clk 0:03:02]} 7. Re1 {[%clk 0:03:00]}  c5 {[%clk 0:03:00]} 8. Bf1 {[%clk 0:02:58]}  Be7 {[%clk 0:02:58]} 9. b3 {[%clk 0:02:58]}  b6 {[%clk 0:02:57]} 10. e4 {[%clk 0:02:51]}  cxd4 {[%clk 0:02:56]} 11. e5 {[%clk 0:02:51]}  Nd5 {[%clk 0:02:54]} 12. Nxd4 {[%clk 0:02:51]}  Bb7 {[%clk 0:02:51]} 13. Bb2 {[%clk 0:02:51]}  O-O {[%clk 0:02:49]} 14. Nd2 {[%clk 0:02:52]}  Nc5 {[%clk 0:02:46]} 15. Qg4 {[%clk 0:02:42]}  Rc8 {[%clk 0:02:06]} 16. Nc4 {[%clk 0:02:40]}  b5 {[%clk 0:01:18]} 17. Nd6 {[%clk 0:02:39]}  Bxd6 {[%clk 0:01:19]} 18. exd6 {[%clk 0:02:40]}  Nf6 {[%clk 0:01:20]} 19. Qf4 {[%clk 0:02:31]}  Ncd7 {[%clk 0:01:16]} 20. Qg3 {[%clk 0:02:25]}  Rc5 {[%clk 0:01:12]} 21. Rac1 {[%clk 0:02:17]}  Qb6 {[%clk 0:01:07]} 22. Rxc5 {[%clk 0:02:15]}  Qxc5 {[%clk 0:01:08]} 23. Rc1 {[%clk 0:02:13]}  Qd5 {[%clk 0:01:02]} 24. Rc7 {[%clk 0:01:59]}  Rd8 {[%clk 0:00:51]} 25. a4 {[%clk 0:01:42]}  bxa4 {[%clk 0:00:20]} 26. bxa4 {[%clk 0:01:41]}  Ba8 {[%clk 0:00:06]} 27. h3 {[%clk 0:01:25]}  Ne8 {[%clk 0:00:06]} 28. Ra7 {[%clk 0:00:56]}  Qxd6 {[%clk 0:00:06]} 29. Qxd6 {[%clk 0:00:56]}  Nxd6 {[%clk 0:00:07]} 30. Rxa6 {[%clk 0:00:57]}  Nc5 {[%clk 0:00:05]} 31. Ra7 {[%clk 0:00:55]}  Bd5 {[%clk 0:00:04]} 32. Nb5 {[%clk 0:00:53]}  Nxb5 {[%clk 0:00:03]} 33. axb5 {[%clk 0:00:53]}  h6 {[%clk 0:00:02]} 34. Kh2 {[%clk 0:00:49]}  Rb8 {[%clk 0:00:02]} 35. Be5 {[%clk 0:00:49]}  Ra8 {[%clk 0:00:01]} 36. Rc7 {[%clk 0:00:47]}  Ne4 {[%clk 0:00:01]} 37. b6 {[%clk 0:00:42]}  Rb8 {[%clk 0:00:01]} 38. f3 {[%clk 0:00:39]}  Nd2 {[%clk 0:00:01]} 39. Bd3 {[%clk 0:00:39]}  f6 {[%clk 0:00:02]} 40. Bf4 {[%clk 0:00:30]}  Nb3 {[%clk 0:00:01]} 41. Rd7 {[%clk 0:00:20]}  Rxb6 {[%clk 0:00:00]} 42. Bg6 {[%clk 0:00:20]} 1-0

[Event "December 5 Late 2023"]
[Site "https://www.chess.com"]
[Date "2023.12.05"]
[Round "4"]
[White "Khruschiov, Alexey"]
[Black "Sarana, Alexey"]
[Result "0-1"]
[Board "21"]
[TimeControl "180+1"]
[WhiteFideId "13900544"]
[BlackFideId "24133795"]
[WhiteElo "2739"]
[BlackElo "3000"]
[WhiteTeam "MDA"]
[BlackTeam "SRB"]
[WhiteClock "0:00:21"]
[BlackClock "0:00:12"]

1. g3 {[%clk 0:03:00]}  d5 {[%clk 0:02:48]} 2. Bg2 {[%clk 0:03:01]}  e5 {[%clk 0:02:48]} 3. Nf3 {[%clk 0:03:00]}  e4 {[%clk 0:02:46]} 4. Nd4 {[%clk 0:03:00]}  c5 {[%clk 0:02:45]} 5. Nb3 {[%clk 0:03:00]}  Nc6 {[%clk 0:02:45]} 6. d3 {[%clk 0:03:00]}  exd3 {[%clk 0:02:45]} 7. exd3 {[%clk 0:03:01]}  Be7 {[%clk 0:02:44]} 8. O-O {[%clk 0:03:01]}  Nf6 {[%clk 0:02:45]} 9. Bg5 {[%clk 0:03:01]}  h6 {[%clk 0:02:40]} 10. Bxf6 {[%clk 0:03:00]}  Bxf6 {[%clk 0:02:41]} 11. Re1+ {[%clk 0:03:00]}  Be6 {[%clk 0:02:40]} 12. Nxc5 {[%clk 0:02:57]}  O-O {[%clk 0:02:11]} 13. Nc3 {[%clk 0:02:54]}  Bxc3 {[%clk 0:01:50]} 14. bxc3 {[%clk 0:02:55]}  Qd6 {[%clk 0:01:47]} 15. d4 {[%clk 0:02:44]}  b6 {[%clk 0:01:41]} 16. Nxe6 {[%clk 0:02:44]}  fxe6 {[%clk 0:01:42]} 17. Qh5 {[%clk 0:02:36]}  Rad8 {[%clk 0:01:36]} 18. Re3 {[%clk 0:02:35]}  Rf6 {[%clk 0:01:36]} 19. Rae1 {[%clk 0:02:34]}  Ne7 {[%clk 0:01:12]} 20. Bh3 {[%clk 0:02:19]}  Nf5 {[%clk 0:01:12]} 21. Bxf5 {[%clk 0:02:20]}  exf5 {[%clk 0:01:11]} 22. Re8+ {[%clk 0:02:18]}  Kh7 {[%clk 0:01:10]} 23. R8e7 {[%clk 0:01:58]}  a5 {[%clk 0:01:06]} 24. h4 {[%clk 0:01:44]}  f4 {[%clk 0:00:41]} 25. g4 {[%clk 0:01:42]}  Rd7 {[%clk 0:00:41]} 26. Re8 {[%clk 0:01:24]}  f3 {[%clk 0:00:25]} 27. R1e5 {[%clk 0:01:17]}  g6 {[%clk 0:00:21]} 28. Rh8+ {[%clk 0:01:07]}  Kxh8 {[%clk 0:00:22]} 29. Qxh6+ {[%clk 0:01:08]}  Kg8 {[%clk 0:00:22]} 30. Re8+ {[%clk 0:01:03]}  Rf8 {[%clk 0:00:16]} 31. Re5 {[%clk 0:00:50]}  Re7 {[%clk 0:00:11]} 32. Qg5 {[%clk 0:00:47]}  Rxe5 {[%clk 0:00:11]} 33. dxe5 {[%clk 0:00:48]}  Qe6 {[%clk 0:00:11]} 34. h5 {[%clk 0:00:48]}  Kg7 {[%clk 0:00:12]} 35. Kh2 {[%clk 0:00:21]}  Re8 {[%clk 0:00:12]} 0-1

[Event "December 5 Late 2023"]
[Site "https://www.chess.com"]
[Date "2023.12.05"]
[Round "4"]
[White "Schmakel, Sam"]
[Black "Paravyan, David"]
[Result "0-1"]
[Board "22"]
[TimeControl "180+1"]
[WhiteFideId "2039311"]
[BlackFideId "4194985"]
[WhiteElo "2720"]
[BlackElo "2996"]
[WhiteTeam "USA"]
[BlackTeam "FID"]
[WhiteClock "0:00:04"]
[BlackClock "0:00:05"]

1. e4 {[%clk 0:03:00]}  e5 {[%clk 0:03:00]} 2. Nf3 {[%clk 0:02:59]}  Nf6 {[%clk 0:03:00]} 3. Nc3 {[%clk 0:02:58]}  Nc6 {[%clk 0:03:00]} 4. h3 {[%clk 0:02:57]}  d5 {[%clk 0:03:00]} 5. exd5 {[%clk 0:02:57]}  Nxd5 {[%clk 0:03:01]} 6. Bb5 {[%clk 0:02:57]}  Nxc3 {[%clk 0:03:02]} 7. bxc3 {[%clk 0:02:58]}  Bd6 {[%clk 0:03:02]} 8. O-O {[%clk 0:02:59]}  O-O {[%clk 0:03:02]} 9. Re1 {[%clk 0:02:59]}  Bd7 {[%clk 0:03:03]} 10. Rb1 {[%clk 0:02:57]}  Re8 {[%clk 0:03:02]} 11. d4 {[%clk 0:02:56]}  a6 {[%clk 0:02:59]} 12. Bf1 {[%clk 0:02:38]}  exd4 {[%clk 0:02:55]} 13. Rxe8+ {[%clk 0:02:37]}  Qxe8 {[%clk 0:02:56]} 14. cxd4 {[%clk 0:02:38]}  b5 {[%clk 0:02:53]} 15. c4 {[%clk 0:02:37]}  bxc4 {[%clk 0:02:43]} 16. Bxc4 {[%clk 0:02:38]}  Be6 {[%clk 0:02:27]} 17. d5 {[%clk 0:02:04]}  Bf5 {[%clk 0:02:24]} 18. Rb3 {[%clk 0:02:04]}  Ne5 {[%clk 0:02:23]} 19. Re3 {[%clk 0:02:02]}  Nxf3+ {[%clk 0:02:14]} 20. Qxf3 {[%clk 0:02:02]}  Qd7 {[%clk 0:02:12]} 21. Bb2 {[%clk 0:01:48]}  Rb8 {[%clk 0:01:53]} 22. Be5 {[%clk 0:01:29]}  Rb1+ {[%clk 0:01:50]} 23. Kh2 {[%clk 0:01:30]}  h6 {[%clk 0:01:26]} 24. Qg3 {[%clk 0:01:10]}  f6 {[%clk 0:01:09]} 25. Bxd6 {[%clk 0:01:09]}  Qxd6 {[%clk 0:01:10]} 26. Re7 {[%clk 0:00:53]}  Kf8 {[%clk 0:00:34]} 27. Rxc7 {[%clk 0:00:42]}  Qxg3+ {[%clk 0:00:34]} 28. Kxg3 {[%clk 0:00:43]}  Rd1 {[%clk 0:00:32]} 29. Kf4 {[%clk 0:00:25]}  g6 {[%clk 0:00:31]} 30. g4 {[%clk 0:00:22]}  Bd3 {[%clk 0:00:24]} 31. Bxd3 {[%clk 0:00:17]}  Rxd3 {[%clk 0:00:25]} 32. Ke4 {[%clk 0:00:18]}  Rxh3 {[%clk 0:00:26]} 33. d6 {[%clk 0:00:18]}  Ke8 {[%clk 0:00:24]} 34. Kd5 {[%clk 0:00:17]}  Rh1 {[%clk 0:00:05]} 35. Ke6 {[%clk 0:00:17]}  Re1+ {[%clk 0:00:05]} 36. Kxf6 {[%clk 0:00:18]}  Rf1 {[%clk 0:00:04]} 37. Rc2 {[%clk 0:00:03]}  g5 {[%clk 0:00:04]} 38. Kg6 {[%clk 0:00:03]}  Rh1 {[%clk 0:00:03]} 39. Rd2 {[%clk 0:00:01]}  Kd7 {[%clk 0:00:04]} 40. a4 {[%clk 0:00:01]}  Rh2 {[%clk 0:00:03]} 41. Kf6 {[%clk 0:00:01]}  Rh1 {[%clk 0:00:03]} 42. Ke5 {[%clk 0:00:01]}  Re1+ {[%clk 0:00:03]} 43. Kf5 {[%clk 0:00:02]}  Ra1 {[%clk 0:00:02]} 44. Kg6 {[%clk 0:00:01]}  Rxa4 {[%clk 0:00:03]} 45. Kxh6 {[%clk 0:00:01]}  Rxg4 {[%clk 0:00:04]} 46. Kg6 {[%clk 0:00:02]}  a5 {[%clk 0:00:03]} 47. Kf5 {[%clk 0:00:02]}  Rg1 {[%clk 0:00:04]} 48. Ke5 {[%clk 0:00:03]}  Re1+ {[%clk 0:00:03]} 49. Kd5 {[%clk 0:00:03]}  Rb1 {[%clk 0:00:03]} 50. Ke5 {[%clk 0:00:03]}  Rb5+ {[%clk 0:00:03]} 51. Kf6 {[%clk 0:00:03]}  a4 {[%clk 0:00:03]} 52. Kg6 {[%clk 0:00:01]}  a3 {[%clk 0:00:03]} 53. Kh5 {[%clk 0:00:02]}  Ra5 {[%clk 0:00:03]} 54. Ra2 {[%clk 0:00:03]}  Kxd6 {[%clk 0:00:04]} 55. Kg4 {[%clk 0:00:03]}  Ke6 {[%clk 0:00:03]} 56. f4 {[%clk 0:00:03]}  gxf4 {[%clk 0:00:04]} 57. Kxf4 {[%clk 0:00:04]}  Kd5 {[%clk 0:00:04]} 58. Ke3 {[%clk 0:00:05]}  Kc4 {[%clk 0:00:05]} 59. Kd2 {[%clk 0:00:04]}  Kb3 {[%clk 0:00:06]} 60. Ra1 {[%clk 0:00:04]}  Kb2 {[%clk 0:00:05]} 0-1

[Event "December 5 Late 2023"]
[Site "https://www.chess.com"]
[Date "2023.12.05"]
[Round "4"]
[White "Goltsev, Dmitry"]
[Black "Kovalev, Vladislav"]
[Result "0-1"]
[Board "24"]
[TimeControl "180+1"]
[WhiteFideId "24176710"]
[BlackFideId "13504398"]
[WhiteElo "2654"]
[BlackElo "2912"]
[WhiteTeam "RUS"]
[BlackTeam "FID"]
[WhiteClock "0:00:00"]
[BlackClock "0:00:08"]

1. e4 {[%clk 0:03:00]}  e5 {[%clk 0:02:58]} 2. Nf3 {[%clk 0:03:00]}  Nc6 {[%clk 0:02:59]} 3. Bb5 {[%clk 0:03:00]}  a6 {[%clk 0:02:59]} 4. Ba4 {[%clk 0:03:00]}  d6 {[%clk 0:03:00]} 5. c3 {[%clk 0:03:00]}  f5 {[%clk 0:02:54]} 6. exf5 {[%clk 0:02:53]}  Bxf5 {[%clk 0:02:43]} 7. d4 {[%clk 0:02:53]}  e4 {[%clk 0:02:36]} 8. d5 {[%clk 0:02:07]}  exf3 {[%clk 0:02:36]} 9. dxc6 {[%clk 0:01:57]}  b5 {[%clk 0:02:34]} 10. Bb3 {[%clk 0:01:28]}  fxg2 {[%clk 0:02:26]} 11. Rg1 {[%clk 0:01:27]}  Qh4 {[%clk 0:02:07]} 12. Rxg2 {[%clk 0:01:15]}  Qe4+ {[%clk 0:01:31]} 13. Kf1 {[%clk 0:00:59]}  Nf6 {[%clk 0:01:15]} 14. Kg1 {[%clk 0:00:51]}  Qxc6 {[%clk 0:01:00]} 15. Bg5 {[%clk 0:00:44]}  Be4 {[%clk 0:00:43]} 16. Rg3 {[%clk 0:00:21]}  d5 {[%clk 0:00:33]} 17. Nd2 {[%clk 0:00:18]}  O-O-O {[%clk 0:00:30]} 18. a4 {[%clk 0:00:14]}  Bc5 {[%clk 0:00:20]} 19. axb5 {[%clk 0:00:14]}  axb5 {[%clk 0:00:21]} 20. Qe2 {[%clk 0:00:10]}  Rhe8 {[%clk 0:00:20]} 21. Be3 {[%clk 0:00:05]}  Bg6 {[%clk 0:00:17]} 22. Nf3 {[%clk 0:00:04]}  Bxe3 {[%clk 0:00:12]} 23. fxe3 {[%clk 0:00:05]}  Ne4 {[%clk 0:00:10]} 24. Nd4 {[%clk 0:00:05]}  Qb6 {[%clk 0:00:10]} 25. Rf3 {[%clk 0:00:04]}  c6 {[%clk 0:00:08]} 26. Kh1 {[%clk 0:00:03]}  Kb7 {[%clk 0:00:08]} 27. Rf4 {[%clk 0:00:04]}  Rf8 {[%clk 0:00:09]} 28. Raf1 {[%clk 0:00:03]}  Rxf4 {[%clk 0:00:09]} 29. Rxf4 {[%clk 0:00:04]}  Qc7 {[%clk 0:00:08]} 30. Rf1 {[%clk 0:00:04]}  Qe7 {[%clk 0:00:08]} 31. Nxb5 {[%clk 0:00:03]}  Nc5 {[%clk 0:00:05]} 32. Nd4 {[%clk 0:00:02]}  Re8 {[%clk 0:00:04]} 33. Bc2 {[%clk 0:00:02]}  Bxc2 {[%clk 0:00:03]} 34. Qxc2 {[%clk 0:00:03]}  Qxe3 {[%clk 0:00:02]} 35. Qf2 {[%clk 0:00:04]}  Qe4+ {[%clk 0:00:02]} 36. Qf3 {[%clk 0:00:04]}  Re7 {[%clk 0:00:02]} 37. Qxe4 {[%clk 0:00:04]}  Nxe4 {[%clk 0:00:03]} 38. Nf5 {[%clk 0:00:04]}  Rd7 {[%clk 0:00:03]} 39. Kg2 {[%clk 0:00:04]}  g6 {[%clk 0:00:03]} 40. Nd4 {[%clk 0:00:04]}  c5 {[%clk 0:00:04]} 41. Ne6 {[%clk 0:00:05]}  Kc6 {[%clk 0:00:03]} 42. Re1 {[%clk 0:00:05]}  Kd6 {[%clk 0:00:03]} 43. Nf4 {[%clk 0:00:05]}  Rb7 {[%clk 0:00:03]} 44. Re2 {[%clk 0:00:05]}  c4 {[%clk 0:00:02]} 45. Kf3 {[%clk 0:00:04]}  Ke5 {[%clk 0:00:03]} 46. Ke3 {[%clk 0:00:04]}  Rf7 {[%clk 0:00:02]} 47. Ng2 {[%clk 0:00:04]}  Kd6 {[%clk 0:00:02]} 48. Nf4 {[%clk 0:00:04]}  g5 {[%clk 0:00:02]} 49. Ng2 {[%clk 0:00:04]}  h5 {[%clk 0:00:03]} 50. Re1 {[%clk 0:00:04]}  Kc5 {[%clk 0:00:03]} 51. Rd1 {[%clk 0:00:04]}  Rf2 {[%clk 0:00:03]} 52. Ne1 {[%clk 0:00:04]}  Rxb2 {[%clk 0:00:03]} 53. Nf3 {[%clk 0:00:04]}  Rc2 {[%clk 0:00:03]} 54. Nd4 {[%clk 0:00:03]}  Rxc3+ {[%clk 0:00:03]} 55. Ke2 {[%clk 0:00:04]}  Rh3 {[%clk 0:00:02]} 56. Ne6+ {[%clk 0:00:04]}  Kd6 {[%clk 0:00:03]} 57. Nd4 {[%clk 0:00:04]}  Rxh2+ {[%clk 0:00:03]} 58. Ke3 {[%clk 0:00:05]}  Rh3+ {[%clk 0:00:04]} 59. Ke2 {[%clk 0:00:05]}  Ke5 {[%clk 0:00:04]} 60. Nc6+ {[%clk 0:00:05]}  Kd6 {[%clk 0:00:04]} 61. Nb4 {[%clk 0:00:04]}  Nc3+ {[%clk 0:00:05]} 62. Kd2 {[%clk 0:00:04]}  Nxd1 {[%clk 0:00:05]} 63. Nc2 {[%clk 0:00:05]}  Nc3 {[%clk 0:00:05]} 64. Kc1 {[%clk 0:00:05]}  Ne4 {[%clk 0:00:06]} 65. Ne1 {[%clk 0:00:05]}  Rc3+ {[%clk 0:00:07]} 66. Kd1 {[%clk 0:00:06]}  g4 {[%clk 0:00:08]} 67. Ng2 {[%clk 0:00:06]}  h4 {[%clk 0:00:08]} 68. Nxh4 {[%clk 0:00:06]}  Kc5 {[%clk 0:00:08]} 69. Nf5 {[%clk 0:00:07]}  Rd3+ {[%clk 0:00:08]} 70. Ke2 {[%clk 0:00:07]}  Rd2+ {[%clk 0:00:08]} 71. Ke1 {[%clk 0:00:06]}  c3 {[%clk 0:00:09]} 72. Ne3 {[%clk 0:00:00]}  c2 {[%clk 0:00:08]} 0-1

[Event "December 5 Late 2023"]
[Site "https://www.chess.com"]
[Date "2023.12.05"]
[Round "4"]
[White "Matlakov, Maxim"]
[Black "Skatchkov, Valery"]
[Result "1-0"]
[Board "32"]
[TimeControl "180+1"]
[WhiteFideId "4168003"]
[BlackFideId "24195812"]
[WhiteElo "2999"]
[BlackElo "2608"]
[WhiteTeam "RUS"]
[BlackTeam "RUS"]
[WhiteClock "0:01:35"]
[BlackClock "0:00:36"]

1. d4 {[%clk 0:02:56]}  Nf6 {[%clk 0:02:59]} 2. Nf3 {[%clk 0:02:55]}  d5 {[%clk 0:02:58]} 3. Bg5 {[%clk 0:02:55]}  c5 {[%clk 0:02:56]} 4. e3 {[%clk 0:02:53]}  Ne4 {[%clk 0:02:55]} 5. Bh4 {[%clk 0:02:52]}  Qb6 {[%clk 0:02:55]} 6. Nc3 {[%clk 0:02:52]}  Nxc3 {[%clk 0:02:38]} 7. bxc3 {[%clk 0:02:53]}  Nc6 {[%clk 0:02:35]} 8. Be2 {[%clk 0:02:50]}  Bf5 {[%clk 0:02:18]} 9. Rb1 {[%clk 0:02:35]}  Qa5 {[%clk 0:02:16]} 10. Rxb7 {[%clk 0:02:22]}  Qxc3+ {[%clk 0:02:14]} 11. Qd2 {[%clk 0:02:22]}  Qxd2+ {[%clk 0:01:52]} 12. Kxd2 {[%clk 0:02:23]}  c4 {[%clk 0:01:40]} 13. Rhb1 {[%clk 0:02:21]}  Bd7 {[%clk 0:01:34]} 14. e4 {[%clk 0:02:08]}  e6 {[%clk 0:01:31]} 15. Ne5 {[%clk 0:02:06]}  Nxe5 {[%clk 0:00:38]} 16. Rb8+ {[%clk 0:02:05]}  Rxb8 {[%clk 0:00:39]} 17. Rxb8+ {[%clk 0:02:04]}  Bc8 {[%clk 0:00:40]} 18. Rxc8+ {[%clk 0:02:01]}  Kd7 {[%clk 0:00:40]} 19. Rd8+ {[%clk 0:01:55]}  Kc7 {[%clk 0:00:41]} 20. dxe5 {[%clk 0:01:54]}  g5 {[%clk 0:00:38]} 21. Bxg5 {[%clk 0:01:50]}  f6 {[%clk 0:00:38]} 22. Rxf8 {[%clk 0:01:35]}  Rxf8 {[%clk 0:00:36]} 23. exf6 {[%clk 0:01:35]} 1-0

[Event "December 5 Late 2023"]
[Site "https://www.chess.com"]
[Date "2023.12.05"]
[Round "4"]
[White "Toropov, Pavel"]
[Black "Khismatullin, Denis"]
[Result "0-1"]
[Board "35"]
[TimeControl "180+1"]
[WhiteFideId "24129178"]
[BlackFideId "4142578"]
[WhiteElo "2595"]
[BlackElo "2930"]
[WhiteTeam "RUS"]
[BlackTeam "RUS"]
[WhiteClock "0:00:32"]
[BlackClock "0:00:30"]

1. e4 {[%clk 0:02:55]}  c5 {[%clk 0:02:58]} 2. Nf3 {[%clk 0:02:54]}  e6 {[%clk 0:02:58]} 3. d4 {[%clk 0:02:54]}  cxd4 {[%clk 0:02:58]} 4. Nxd4 {[%clk 0:02:55]}  Nf6 {[%clk 0:02:58]} 5. Nc3 {[%clk 0:02:55]}  Nc6 {[%clk 0:02:58]} 6. Be3 {[%clk 0:02:54]}  Bb4 {[%clk 0:02:55]} 7. Bd3 {[%clk 0:02:48]}  d5 {[%clk 0:02:51]} 8. Nxc6 {[%clk 0:02:43]}  bxc6 {[%clk 0:02:50]} 9. exd5 {[%clk 0:02:42]}  cxd5 {[%clk 0:02:44]} 10. Bd4 {[%clk 0:02:40]}  O-O {[%clk 0:02:41]} 11. O-O {[%clk 0:02:39]}  Bb7 {[%clk 0:02:37]} 12. Re1 {[%clk 0:02:38]}  g6 {[%clk 0:02:28]} 13. Qf3 {[%clk 0:02:32]}  Nd7 {[%clk 0:02:27]} 14. Qg3 {[%clk 0:02:17]}  Re8 {[%clk 0:02:25]} 15. a3 {[%clk 0:02:08]}  Bc5 {[%clk 0:02:20]} 16. Nb5 {[%clk 0:01:53]}  Bxd4 {[%clk 0:02:14]} 17. Nxd4 {[%clk 0:01:52]}  a6 {[%clk 0:02:08]} 18. Nf3 {[%clk 0:01:50]}  Qf6 {[%clk 0:01:59]} 19. Ne5 {[%clk 0:01:47]}  Nxe5 {[%clk 0:01:58]} 20. Qxe5 {[%clk 0:01:46]}  Qxe5 {[%clk 0:01:56]} 21. Rxe5 {[%clk 0:01:47]}  Rec8 {[%clk 0:01:56]} 22. c3 {[%clk 0:01:46]}  a5 {[%clk 0:01:56]} 23. Rd1 {[%clk 0:01:43]}  Ba6 {[%clk 0:01:53]} 24. Bxa6 {[%clk 0:01:39]}  Rxa6 {[%clk 0:01:54]} 25. g3 {[%clk 0:01:37]}  Rb6 {[%clk 0:01:52]} 26. Rd2 {[%clk 0:01:38]}  a4 {[%clk 0:01:51]} 27. Ree2 {[%clk 0:01:36]}  Rc4 {[%clk 0:01:50]} 28. Kg2 {[%clk 0:01:34]}  Kg7 {[%clk 0:01:49]} 29. Kf3 {[%clk 0:01:34]}  g5 {[%clk 0:01:47]} 30. Ke3 {[%clk 0:01:34]}  Kf6 {[%clk 0:01:45]} 31. Rd4 {[%clk 0:01:33]}  Rxd4 {[%clk 0:01:38]} 32. Kxd4 {[%clk 0:01:34]}  Rc6 {[%clk 0:01:38]} 33. Ke3 {[%clk 0:01:30]}  Kf5 {[%clk 0:01:23]} 34. Rd2 {[%clk 0:01:27]}  Rb6 {[%clk 0:01:22]} 35. f3 {[%clk 0:01:25]}  h5 {[%clk 0:01:20]} 36. h3 {[%clk 0:01:25]}  Ke5 {[%clk 0:01:13]} 37. g4 {[%clk 0:01:21]}  h4 {[%clk 0:01:10]} 38. Re2 {[%clk 0:01:20]}  f6 {[%clk 0:01:07]} 39. Rd2 {[%clk 0:01:20]}  Rb3 {[%clk 0:01:03]} 40. Kf2 {[%clk 0:01:19]}  Kd6 {[%clk 0:01:01]} 41. Ke3 {[%clk 0:01:19]}  e5 {[%clk 0:00:59]} 42. Kd3 {[%clk 0:01:19]}  Kc5 {[%clk 0:00:58]} 43. Kc2 {[%clk 0:01:19]}  Kc4 {[%clk 0:00:55]} 44. Rd1 {[%clk 0:01:15]}  d4 {[%clk 0:00:50]} 45. Rd3 {[%clk 0:01:14]}  Rb6 {[%clk 0:00:48]} 46. Rd1 {[%clk 0:01:02]}  Rd6 {[%clk 0:00:45]} 47. Rd3 {[%clk 0:01:00]}  Rd5 {[%clk 0:00:44]} 48. cxd4 {[%clk 0:00:59]}  exd4 {[%clk 0:00:42]} 49. f4 {[%clk 0:00:36]}  gxf4 {[%clk 0:00:41]} 50. Rf3 {[%clk 0:00:35]}  d3+ {[%clk 0:00:41]} 51. Kd2 {[%clk 0:00:35]}  Rd4 {[%clk 0:00:41]} 52. Rf1 {[%clk 0:00:35]}  Kb3 {[%clk 0:00:40]} 53. Rc1 {[%clk 0:00:34]}  Kxb2 {[%clk 0:00:35]} 54. Rc5 {[%clk 0:00:34]}  Kxa3 {[%clk 0:00:31]} 55. Rh5 {[%clk 0:00:34]}  Kb3 {[%clk 0:00:30]} 56. Rxh4 {[%clk 0:00:34]}  a3 {[%clk 0:00:30]} 57. Rh8 {[%clk 0:00:32]}  a2 {[%clk 0:00:30]} 0-1